[Event "*** Titled Tuesday Blitz"]
[Site "Chess.com"]
[Date "2021.02.16"]
[Round "10"]
[White "Mihnea2017"]
[Black "elohunter1999"]
[Result "0-1"]
[WhiteElo "2466"]
[BlackElo "2625"]
[TimeControl "180+1"]
[EndTime "11:59:34 PST"]
[Termination "elohunter1999 won by resignation"]

1. e4 {[%clk 0:03:00.9]} 1... c5 {[%clk 0:02:57.2]} 2. Nf3 {[%clk 0:03:00.6]}
2... Nc6 {[%clk 0:02:57.7]} 3. d4 {[%clk 0:03:00.7]} 3... cxd4 {[%clk
0:02:58.6]} 4. Nxd4 {[%clk 0:03:01.5]} 4... e5 {[%clk 0:02:57.9]} 5. Nb5 {[%clk
0:03:01.1]} 5... d6 {[%clk 0:02:58.1]} 6. N1c3 {[%clk 0:03:00.3]} 6... a6 {[%clk
0:02:58.3]} 7. Na3 {[%clk 0:03:00.1]} 7... Be6 {[%clk 0:02:52.3]} 8. Nc4 {[%clk
0:02:49.8]} 8... b5 {[%clk 0:02:45.8]} 9. Ne3 {[%clk 0:02:47.3]} 9... Nf6 {[%clk
0:02:45.4]} 10. Ned5 {[%clk 0:02:35.7]} 10... Be7 {[%clk 0:02:24.5]} 11. Nxf6+
{[%clk 0:02:26.9]} 11... Bxf6 {[%clk 0:02:23.9]} 12. Bd3 {[%clk 0:02:27.8]}
12... Bg5 {[%clk 0:02:18.3]} 13. O-O {[%clk 0:02:27]} 13... Bxc1 {[%clk
0:02:11.1]} 14. Qxc1 {[%clk 0:02:25.7]} 14... O-O {[%clk 0:02:12]} 15. a3 {[%clk
0:02:13]} 15... Qh4 {[%clk 0:01:59.4]} 16. Qe3 {[%clk 0:02:12.2]} 16... Rac8
{[%clk 0:01:56.4]} 17. Rad1 {[%clk 0:02:11.3]} 17... Nd4 {[%clk 0:01:51.9]} 18.
Rd2 {[%clk 0:01:58.3]} 18... Qf4 {[%clk 0:01:25.1]} 19. Rfd1 {[%clk 0:01:39.9]}
19... Qxe3 {[%clk 0:01:15.5]} 20. fxe3 {[%clk 0:01:40]} 20... Nc6 {[%clk
0:01:16.3]} 21. Be2 {[%clk 0:01:36.2]} 21... b4 {[%clk 0:01:09.6]} 22. Nd5
{[%clk 0:01:21.7]} 22... a5 {[%clk 0:00:55.6]} 23. Ba6 {[%clk 0:01:08.8]} 23...
Rb8 {[%clk 0:00:50.4]} 24. axb4 {[%clk 0:01:07.4]} 24... Bxd5 {[%clk 0:00:49.1]}
25. exd5 {[%clk 0:01:00.2]} 25... Nxb4 {[%clk 0:00:48]} 26. Be2 {[%clk
0:00:54.9]} 26... Rb6 {[%clk 0:00:40.5]} 27. c3 {[%clk 0:00:55.1]} 27... Na6
{[%clk 0:00:40.5]} 28. Ra1 {[%clk 0:00:52.3]} 28... Nc5 {[%clk 0:00:39.7]} 29.
Bc4 {[%clk 0:00:30.5]} 29... a4 {[%clk 0:00:37]} 30. Ra3 {[%clk 0:00:20.6]}
30... Rfb8 {[%clk 0:00:35]} 31. Kf1 {[%clk 0:00:16]} 31... Rxb2 {[%clk
0:00:33.6]} 32. Ke1 {[%clk 0:00:16.5]} 32... Rxd2 {[%clk 0:00:32.2]} 33. Kxd2
{[%clk 0:00:16.8]} 33... Rb2+ {[%clk 0:00:32.1]} 34. Kc1 {[%clk 0:00:16.7]}
34... Rxg2 {[%clk 0:00:31.7]} 35. Bb5 {[%clk 0:00:17.1]} 35... g6 {[%clk
0:00:26.6]} 36. Bxa4 {[%clk 0:00:17.3]} 36... Rxh2 {[%clk 0:00:25.9]} 37. Bc2
{[%clk 0:00:15.2]} 37... h5 {[%clk 0:00:25]} 38. Ra8+ {[%clk 0:00:15.2]} 38...
Kg7 {[%clk 0:00:24.8]} 39. Rd8 {[%clk 0:00:16.1]} 39... h4 {[%clk 0:00:21.4]}
40. Rxd6 {[%clk 0:00:16.3]} 40... h3 {[%clk 0:00:21.7]} 41. Rc6 {[%clk
0:00:16.8]} 41... Rh1+ {[%clk 0:00:21.7]} 42. Kb2 {[%clk 0:00:16.3]} 42... h2
{[%clk 0:00:15.5]} 43. Rxc5 {[%clk 0:00:16.1]} 43... Rb1+ {[%clk 0:00:16.1]} 44.
Bxb1 {[%clk 0:00:16.6]} 44... h1=Q {[%clk 0:00:16.8]} 45. Bc2 {[%clk 0:00:15.9]}
45... Qe1 {[%clk 0:00:16.2]} 46. c4 {[%clk 0:00:15.3]} 46... Qxe3 {[%clk
0:00:16.2]} 47. Rc6 {[%clk 0:00:15.9]} 47... Qd4+ {[%clk 0:00:16.3]} 48. Kb3
{[%clk 0:00:15.9]} 48... e4 {[%clk 0:00:16.8]} 49. d6 {[%clk 0:00:16.1]} 49...
e3 {[%clk 0:00:16.6]} 50. c5 {[%clk 0:00:14.3]} 50... Qd5+ {[%clk 0:00:16.3]}
0-1

[Event "*** Titled Tuesday Blitz"]
[Site "Chess.com"]
[Date "2021.02.16"]
[Round "10"]
[White "DenishevM"]
[Black "federicosellitti"]
[Result "1/2-1/2"]
[WhiteElo "2589"]
[BlackElo "2469"]
[TimeControl "180+1"]
[EndTime "11:59:34 PST"]
[Termination "Game drawn - insufficient material"]

1. Nf3 {[%clk 0:02:58.3]} 1... Nf6 {[%clk 0:02:59.8]} 2. b3 {[%clk 0:02:58.6]}
2... g6 {[%clk 0:03:00]} 3. Bb2 {[%clk 0:02:59.4]} 3... Bg7 {[%clk 0:03:00.6]}
4. e3 {[%clk 0:03:00.1]} 4... O-O {[%clk 0:03:01.1]} 5. c4 {[%clk 0:03:00]} 5...
c5 {[%clk 0:03:01]} 6. d4 {[%clk 0:03:00]} 6... cxd4 {[%clk 0:02:59.3]} 7. Nxd4
{[%clk 0:03:00.9]} 7... Nc6 {[%clk 0:02:59.1]} 8. Be2 {[%clk 0:03:00.4]} 8... d5
{[%clk 0:02:44.2]} 9. Nxc6 {[%clk 0:02:58.3]} 9... bxc6 {[%clk 0:02:44.1]} 10.
O-O {[%clk 0:02:58.2]} 10... e6 {[%clk 0:02:28.4]} 11. Nd2 {[%clk 0:02:54.9]}
11... a5 {[%clk 0:02:27.5]} 12. Nf3 {[%clk 0:02:47.2]} 12... Ba6 {[%clk
0:02:21.7]} 13. Qc2 {[%clk 0:02:45.6]} 13... Qe7 {[%clk 0:02:09.4]} 14. Rad1
{[%clk 0:02:37.4]} 14... Rfc8 {[%clk 0:02:05.1]} 15. Be5 {[%clk 0:02:29.1]}
15... Ne4 {[%clk 0:01:57.9]} 16. Bxg7 {[%clk 0:02:22.3]} 16... Kxg7 {[%clk
0:01:58.8]} 17. Bd3 {[%clk 0:02:19.1]} 17... Nd6 {[%clk 0:01:46.2]} 18. e4
{[%clk 0:02:11.9]} 18... dxc4 {[%clk 0:01:35.8]} 19. Bxc4 {[%clk 0:02:09.1]}
19... Nxc4 {[%clk 0:01:26.2]} 20. bxc4 {[%clk 0:02:10]} 20... Qb4 {[%clk
0:01:19.5]} 21. Rc1 {[%clk 0:02:02]} 21... Rab8 {[%clk 0:01:12.8]} 22. Qd3
{[%clk 0:01:29.5]} 22... Rd8 {[%clk 0:01:02.7]} 23. Qe3 {[%clk 0:01:21.6]} 23...
Bxc4 {[%clk 0:00:34.9]} 24. Rfe1 {[%clk 0:01:21.2]} 24... Bxa2 {[%clk
0:00:28.7]} 25. Rxc6 {[%clk 0:01:18.9]} 25... Rdc8 {[%clk 0:00:13.8]} 26. Rxc8
{[%clk 0:01:11.2]} 26... Rxc8 {[%clk 0:00:14.7]} 27. e5 {[%clk 0:01:09.9]} 27...
Qc3 {[%clk 0:00:13.8]} 28. Qg5 {[%clk 0:01:06.7]} 28... h6 {[%clk 0:00:13]} 29.
Qf6+ {[%clk 0:01:06.6]} 29... Kg8 {[%clk 0:00:13.6]} 30. h4 {[%clk 0:01:07.5]}
30... Bd5 {[%clk 0:00:12.8]} 31. Re3 {[%clk 0:01:04]} 31... Qc1+ {[%clk
0:00:12.4]} 32. Kh2 {[%clk 0:01:04.1]} 32... Bxf3 {[%clk 0:00:12.9]} 33. Rxf3
{[%clk 0:01:05]} 33... Qc7 {[%clk 0:00:13]} 34. h5 {[%clk 0:01:05]} 34... Qd8
{[%clk 0:00:09.8]} 35. hxg6 {[%clk 0:01:00.6]} 35... Qxf6 {[%clk 0:00:09.4]} 36.
Rxf6 {[%clk 0:01:01.5]} 36... fxg6 {[%clk 0:00:09.7]} 37. Rxe6 {[%clk
0:01:01.9]} 37... Ra8 {[%clk 0:00:09.1]} 38. Rxg6+ {[%clk 0:01:01.9]} 38... Kf7
{[%clk 0:00:08.2]} 39. Rxh6 {[%clk 0:01:01.1]} 39... a4 {[%clk 0:00:08.7]} 40.
Kg3 {[%clk 0:00:59.9]} 40... a3 {[%clk 0:00:09.2]} 41. Rh1 {[%clk 0:01:00.6]}
41... Ke6 {[%clk 0:00:09.3]} 42. f4 {[%clk 0:01:00.3]} 42... Kf5 {[%clk
0:00:09.8]} 43. Ra1 {[%clk 0:00:58.7]} 43... a2 {[%clk 0:00:10.2]} 44. Kf3
{[%clk 0:00:58.9]} 44... Ra3+ {[%clk 0:00:10.7]} 45. Kf2 {[%clk 0:00:59.5]}
45... Kxf4 {[%clk 0:00:11.2]} 46. e6 {[%clk 0:00:59.9]} 46... Re3 {[%clk
0:00:08.2]} 47. Rxa2 {[%clk 0:00:58.6]} 47... Rxe6 {[%clk 0:00:08.6]} 48. g3+
{[%clk 0:00:59.2]} 48... Kg4 {[%clk 0:00:08.8]} 49. Ra4+ {[%clk 0:00:59.3]}
49... Kg5 {[%clk 0:00:09.1]} 50. Kf3 {[%clk 0:01:00.2]} 50... Rb6 {[%clk
0:00:09.2]} 51. Ra5+ {[%clk 0:01:00.3]} 51... Kg6 {[%clk 0:00:09.4]} 52. Ra4
{[%clk 0:00:58.7]} 52... Rc6 {[%clk 0:00:09.3]} 53. Kg4 {[%clk 0:00:59.2]} 53...
Rb6 {[%clk 0:00:09.1]} 54. Rf4 {[%clk 0:00:59.9]} 54... Rc6 {[%clk 0:00:09.3]}
55. Re4 {[%clk 0:01:00.4]} 55... Rb6 {[%clk 0:00:09.7]} 56. Kf4 {[%clk
0:01:01.1]} 56... Rc6 {[%clk 0:00:10]} 57. g4 {[%clk 0:01:01.9]} 57... Rb6
{[%clk 0:00:10.5]} 58. g5 {[%clk 0:01:02.6]} 58... Ra6 {[%clk 0:00:10.9]} 59.
Kg4 {[%clk 0:01:02.9]} 59... Rb6 {[%clk 0:00:11.3]} 60. Rf4 {[%clk 0:01:03.6]}
60... Ra6 {[%clk 0:00:11.5]} 61. Re4 {[%clk 0:01:04.3]} 61... Rb6 {[%clk
0:00:11.9]} 62. Rf4 {[%clk 0:01:03.9]} 62... Ra6 {[%clk 0:00:12.2]} 63. Rf6+
{[%clk 0:01:04.3]} 63... Rxf6 {[%clk 0:00:11.8]} 64. gxf6 {[%clk 0:01:05.2]}
64... Kxf6 {[%clk 0:00:12.7]} 1/2-1/2

[Event "*** Titled Tuesday Blitz"]
[Site "Chess.com"]
[Date "2021.02.16"]
[Round "10"]
[White "GameOverBro"]
[Black "kidagent"]
[Result "1/2-1/2"]
[WhiteElo "2428"]
[BlackElo "2320"]
[TimeControl "180+1"]
[EndTime "11:59:34 PST"]
[Termination "Game drawn by repetition"]

1. e4 {[%clk 0:03:00.9]} 1... c5 {[%clk 0:02:59.7]} 2. Ne2 {[%clk 0:03:00.7]}
2... Nc6 {[%clk 0:02:59]} 3. Nbc3 {[%clk 0:03:00.8]} 3... Nd4 {[%clk 0:02:58.9]}
4. Nxd4 {[%clk 0:02:59.1]} 4... cxd4 {[%clk 0:02:59.1]} 5. Ne2 {[%clk
0:02:59.3]} 5... e5 {[%clk 0:02:59.3]} 6. Ng3 {[%clk 0:02:59]} 6... d5 {[%clk
0:02:58.3]} 7. Bb5+ {[%clk 0:02:51.8]} 7... Bd7 {[%clk 0:02:58]} 8. Qe2 {[%clk
0:02:47.2]} 8... Nf6 {[%clk 0:02:58]} 9. O-O {[%clk 0:02:42.8]} 9... dxe4 {[%clk
0:02:43.8]} 10. Nxe4 {[%clk 0:02:41.6]} 10... Nxe4 {[%clk 0:02:42.5]} 11. Bxd7+
{[%clk 0:02:41.4]} 11... Qxd7 {[%clk 0:02:43]} 12. Qxe4 {[%clk 0:02:42]} 12...
Bd6 {[%clk 0:02:42]} 13. f4 {[%clk 0:02:41.5]} 13... Qc6 {[%clk 0:02:27.1]} 14.
Qxc6+ {[%clk 0:02:39.1]} 14... bxc6 {[%clk 0:02:26.8]} 15. fxe5 {[%clk
0:02:32.4]} 15... Bxe5 {[%clk 0:02:26.7]} 16. b3 {[%clk 0:02:22.8]} 16... O-O
{[%clk 0:02:18.2]} 17. Ba3 {[%clk 0:02:20.3]} 17... Rfe8 {[%clk 0:02:15.3]} 18.
Rae1 {[%clk 0:02:18.9]} 18... Bf6 {[%clk 0:02:07.9]} 19. Bc5 {[%clk 0:02:16]}
19... a6 {[%clk 0:02:01.6]} 20. Kf2 {[%clk 0:02:14.8]} 20... Rad8 {[%clk
0:01:50.3]} 21. Rxe8+ {[%clk 0:02:13.9]} 21... Rxe8 {[%clk 0:01:49.8]} 22. Re1
{[%clk 0:02:12]} 22... Rxe1 {[%clk 0:01:47.9]} 23. Kxe1 {[%clk 0:02:12]} 23...
Be5 {[%clk 0:01:47.9]} 24. g3 {[%clk 0:02:11]} 24... f5 {[%clk 0:01:46.4]} 25.
Ke2 {[%clk 0:02:11.4]} 25... h5 {[%clk 0:01:23.8]} 26. Kd3 {[%clk 0:02:09.3]}
26... h4 {[%clk 0:01:14.6]} 27. gxh4 {[%clk 0:02:05.4]} 27... Bxh2 {[%clk
0:01:13.9]} 28. Bxd4 {[%clk 0:02:00.5]} 28... g6 {[%clk 0:01:13.4]} 29. Kc4
{[%clk 0:01:45.2]} 29... Bg3 {[%clk 0:01:09.4]} 30. Bf6 {[%clk 0:01:44.9]} 30...
Kf7 {[%clk 0:01:05.3]} 31. Bg5 {[%clk 0:01:44.8]} 31... Ke6 {[%clk 0:01:05.9]}
32. Kc5 {[%clk 0:01:40.6]} 32... f4 {[%clk 0:01:03.8]} 33. Kd4 {[%clk
0:01:39.3]} 33... Kf5 {[%clk 0:01:00.7]} 34. c4 {[%clk 0:01:33.6]} 34... Kg4
{[%clk 0:00:47.6]} 35. Ke4 {[%clk 0:01:33.8]} 35... f3 {[%clk 0:00:45.2]} 36.
Ke3 {[%clk 0:01:30.7]} 36... Bh2 {[%clk 0:00:37.6]} 37. Kf2 {[%clk 0:01:24.5]}
37... Bg3+ {[%clk 0:00:34.9]} 38. Kf1 {[%clk 0:01:24.5]} 38... Kf5 {[%clk
0:00:27.9]} 39. d3 {[%clk 0:01:19.2]} 39... Ke5 {[%clk 0:00:24.2]} 40. b4 {[%clk
0:01:13.3]} 40... Kd4 {[%clk 0:00:23.8]} 41. a4 {[%clk 0:01:13.7]} 41... Kxd3
{[%clk 0:00:22.9]} 42. b5 {[%clk 0:01:14.2]} 42... axb5 {[%clk 0:00:17.3]} 43.
axb5 {[%clk 0:01:12.1]} 43... Kxc4 {[%clk 0:00:16.4]} 44. bxc6 {[%clk
0:01:05.7]} 44... Kc5 {[%clk 0:00:15.9]} 45. c7 {[%clk 0:01:06.1]} 45... Bxc7
{[%clk 0:00:15.5]} 46. Kf2 {[%clk 0:01:06.8]} 46... Kd5 {[%clk 0:00:14.6]} 47.
Kxf3 {[%clk 0:01:07.4]} 47... Ke6 {[%clk 0:00:14.7]} 48. Kg4 {[%clk 0:01:08]}
48... Be5 {[%clk 0:00:13.9]} 49. Bd8 {[%clk 0:01:06.5]} 49... Kf7 {[%clk
0:00:13.7]} 50. Kg5 {[%clk 0:01:05.7]} 50... Bb2 {[%clk 0:00:13.3]} 51. Kh6
{[%clk 0:01:05.1]} 51... Bc1+ {[%clk 0:00:13.3]} 52. Bg5 {[%clk 0:01:05.6]}
52... Bb2 {[%clk 0:00:13.2]} 53. Kh7 {[%clk 0:01:05.6]} 53... Bc3 {[%clk
0:00:12.9]} 54. Kh6 {[%clk 0:01:05.7]} 54... Bg7+ {[%clk 0:00:12.3]} 55. Kh7
{[%clk 0:01:05.9]} 55... Bd4 {[%clk 0:00:12.7]} 56. Bf4 {[%clk 0:01:04.4]} 56...
Bg7 {[%clk 0:00:12.3]} 57. Be3 {[%clk 0:01:03.8]} 57... Be5 {[%clk 0:00:12.2]}
58. Kh6 {[%clk 0:01:02.8]} 58... Bg7+ {[%clk 0:00:11.8]} 59. Kh7 {[%clk
0:01:02.8]} 59... Be5 {[%clk 0:00:11.7]} 60. Bd2 {[%clk 0:01:02.8]} 60... Bg7
{[%clk 0:00:11]} 61. Bh6 {[%clk 0:01:02.2]} 61... Be5 {[%clk 0:00:10]} 62. Bg5
{[%clk 0:01:01.7]} 62... Bg7 {[%clk 0:00:09.7]} 63. Bf4 {[%clk 0:01:01.7]} 63...
Bf6 {[%clk 0:00:09.5]} 64. Bg5 {[%clk 0:01:00.3]} 64... Bg7 {[%clk 0:00:09.5]}
65. Bd8 {[%clk 0:00:58.1]} 65... Be5 {[%clk 0:00:08.4]} 66. Kh6 {[%clk
0:00:57.4]} 66... Bg7+ {[%clk 0:00:07.5]} 67. Kh7 {[%clk 0:00:57.1]} 67... Be5
{[%clk 0:00:07.5]} 68. Bg5 {[%clk 0:00:56.4]} 68... Bg7 {[%clk 0:00:07.3]}
1/2-1/2

[Event "*** Titled Tuesday Blitz"]
[Site "Chess.com"]
[Date "2021.02.16"]
[Round "10"]
[White "Skillcam"]
[Black "lucachess49"]
[Result "1-0"]
[WhiteElo "2482"]
[BlackElo "2352"]
[TimeControl "180+1"]
[EndTime "11:59:35 PST"]
[Termination "Skillcam won on time"]

1. d4 {[%clk 0:03:00.9]} 1... Nf6 {[%clk 0:02:32.5]} 2. c4 {[%clk 0:02:59.9]}
2... e6 {[%clk 0:02:31.5]} 3. Nc3 {[%clk 0:02:59.5]} 3... Bb4 {[%clk 0:02:25.8]}
4. e3 {[%clk 0:02:59.4]} 4... O-O {[%clk 0:02:24.8]} 5. Ne2 {[%clk 0:03:00]}
5... Re8 {[%clk 0:02:24]} 6. a3 {[%clk 0:02:59.8]} 6... Bf8 {[%clk 0:02:24.6]}
7. Ng3 {[%clk 0:02:56.5]} 7... d6 {[%clk 0:02:24.4]} 8. Bd3 {[%clk 0:02:54.9]}
8... e5 {[%clk 0:02:23.8]} 9. O-O {[%clk 0:02:55]} 9... Nc6 {[%clk 0:02:21.8]}
10. Nd5 {[%clk 0:02:45.5]} 10... exd4 {[%clk 0:02:18.7]} 11. exd4 {[%clk
0:02:41.3]} 11... Nxd5 {[%clk 0:02:18]} 12. cxd5 {[%clk 0:02:40.9]} 12... Ne7
{[%clk 0:02:18.2]} 13. Bg5 {[%clk 0:02:34.6]} 13... f6 {[%clk 0:02:16.6]} 14.
Bd2 {[%clk 0:02:09.1]} 14... g6 {[%clk 0:02:02.7]} 15. Qf3 {[%clk 0:02:04.4]}
15... Bg7 {[%clk 0:01:55.8]} 16. Rfe1 {[%clk 0:02:01.2]} 16... f5 {[%clk
0:01:26.5]} 17. h4 {[%clk 0:01:58.7]} 17... c6 {[%clk 0:01:08.9]} 18. dxc6
{[%clk 0:01:50.4]} 18... bxc6 {[%clk 0:01:09.8]} 19. h5 {[%clk 0:01:49.9]} 19...
Nd5 {[%clk 0:00:59.7]} 20. hxg6 {[%clk 0:01:41.1]} 20... hxg6 {[%clk 0:00:58.9]}
21. Rxe8+ {[%clk 0:01:37.5]} 21... Qxe8 {[%clk 0:00:57.7]} 22. Re1 {[%clk
0:01:37.2]} 22... Qf7 {[%clk 0:00:57.6]} 23. Bc4 {[%clk 0:01:25.8]} 23... Be6
{[%clk 0:00:56.5]} 24. b4 {[%clk 0:01:20.6]} 24... Re8 {[%clk 0:00:55.3]} 25.
Bg5 {[%clk 0:01:11]} 25... Bxd4 {[%clk 0:00:52.8]} 26. Qd1 {[%clk 0:01:01.3]}
26... Bc3 {[%clk 0:00:46.4]} 27. Re2 {[%clk 0:00:49.2]} 27... Be5 {[%clk
0:00:42.4]} 28. Bxd5 {[%clk 0:00:32.5]} 28... Bxd5 {[%clk 0:00:40.7]} 29. f4
{[%clk 0:00:32.9]} 29... Bb2 {[%clk 0:00:34.5]} 30. Rxb2 {[%clk 0:00:30.4]}
30... Re3 {[%clk 0:00:28.9]} 31. Nf1 {[%clk 0:00:24.6]} 31... Re4 {[%clk
0:00:26.4]} 32. Re2 {[%clk 0:00:23]} 32... Qe6 {[%clk 0:00:26.9]} 33. Rxe4
{[%clk 0:00:20.4]} 33... Qxe4 {[%clk 0:00:27.8]} 34. Qd2 {[%clk 0:00:20.9]}
34... Qb1 {[%clk 0:00:23.1]} 35. Qe3 {[%clk 0:00:16.2]} 35... Be4 {[%clk
0:00:19.5]} 36. Bf6 {[%clk 0:00:04.1]} 36... Qa2 {[%clk 0:00:06.7]} 37. Qf2
{[%clk 0:00:02.6]} 37... Qxa3 {[%clk 0:00:05.3]} 38. Qh4 {[%clk 0:00:02.6]}
38... Kf7 {[%clk 0:00:03.6]} 39. Qh8 {[%clk 0:00:02.7]} 39... Ke6 {[%clk
0:00:02.4]} 40. Qg7 {[%clk 0:00:02.7]} 1-0

[Event "*** Titled Tuesday Blitz"]
[Site "Chess.com"]
[Date "2021.02.16"]
[Round "10"]
[White "GM_LOADING"]
[Black "GregShahade"]
[Result "1/2-1/2"]
[WhiteElo "2509"]
[BlackElo "2660"]
[TimeControl "180+1"]
[EndTime "11:59:37 PST"]
[Termination "Game drawn by stalemate"]

1. d4 {[%clk 0:03:00.9]} 1... Nf6 {[%clk 0:02:59.9]} 2. Nf3 {[%clk 0:02:58.6]}
2... g6 {[%clk 0:02:59.9]} 3. Bg5 {[%clk 0:02:58.7]} 3... Bg7 {[%clk 0:03:00.1]}
4. Nbd2 {[%clk 0:02:59.3]} 4... O-O {[%clk 0:03:00.3]} 5. e3 {[%clk 0:02:59]}
5... d6 {[%clk 0:03:00.7]} 6. Bc4 {[%clk 0:02:59.3]} 6... c5 {[%clk 0:02:52.5]}
7. c3 {[%clk 0:02:58.3]} 7... Nc6 {[%clk 0:02:47.5]} 8. O-O {[%clk 0:02:57.8]}
8... h6 {[%clk 0:02:46.5]} 9. Bh4 {[%clk 0:02:56.8]} 9... b6 {[%clk 0:02:43.7]}
10. Re1 {[%clk 0:02:50.5]} 10... Bb7 {[%clk 0:02:42.4]} 11. Rc1 {[%clk
0:02:49.9]} 11... Rc8 {[%clk 0:02:40.5]} 12. a3 {[%clk 0:02:43.2]} 12... e6
{[%clk 0:02:36.6]} 13. e4 {[%clk 0:02:39.8]} 13... g5 {[%clk 0:02:18.6]} 14. Bg3
{[%clk 0:02:36.9]} 14... Nh5 {[%clk 0:02:18.8]} 15. d5 {[%clk 0:02:30]} 15...
exd5 {[%clk 0:02:10.8]} 16. Bxd5 {[%clk 0:02:29.9]} 16... Nxg3 {[%clk
0:02:09.4]} 17. hxg3 {[%clk 0:02:29.8]} 17... Qe7 {[%clk 0:01:45.3]} 18. Nc4
{[%clk 0:02:28.5]} 18... Rcd8 {[%clk 0:01:38]} 19. Ne3 {[%clk 0:02:26.5]} 19...
Qc7 {[%clk 0:01:19.6]} 20. Nh2 {[%clk 0:01:51.7]} 20... Ne7 {[%clk 0:01:18.1]}
21. Nhg4 {[%clk 0:01:46.7]} 21... h5 {[%clk 0:01:05.6]} 22. Nh2 {[%clk
0:01:45.9]} 22... g4 {[%clk 0:00:58.7]} 23. Rc2 {[%clk 0:01:44.3]} 23... Bxd5
{[%clk 0:00:51.6]} 24. Nxd5 {[%clk 0:01:44.2]} 24... Nxd5 {[%clk 0:00:51.8]} 25.
Qxd5 {[%clk 0:01:45.1]} 25... Be5 {[%clk 0:00:48.4]} 26. Nf1 {[%clk 0:01:43.3]}
26... Qe7 {[%clk 0:00:47]} 27. Ne3 {[%clk 0:01:42.3]} 27... Qe6 {[%clk
0:00:47.4]} 28. Rd2 {[%clk 0:01:39]} 28... Qxd5 {[%clk 0:00:43.4]} 29. Rxd5
{[%clk 0:01:39.9]} 29... Kh7 {[%clk 0:00:39.4]} 30. Red1 {[%clk 0:01:36.8]}
30... b5 {[%clk 0:00:28.4]} 31. Nf5 {[%clk 0:01:30.1]} 31... Rfe8 {[%clk
0:00:26.9]} 32. Kf1 {[%clk 0:01:29.2]} 32... Rb8 {[%clk 0:00:20.9]} 33. Nxd6
{[%clk 0:01:27.5]} 33... Bxd6 {[%clk 0:00:20.4]} 34. Rxd6 {[%clk 0:01:26.3]}
34... Rxe4 {[%clk 0:00:20.6]} 35. R6d5 {[%clk 0:01:06.6]} 35... b4 {[%clk
0:00:18.4]} 36. Rxh5+ {[%clk 0:01:02.5]} 36... Kg6 {[%clk 0:00:18.8]} 37. Rxc5
{[%clk 0:01:01]} 37... bxa3 {[%clk 0:00:19]} 38. bxa3 {[%clk 0:01:00.9]} 38...
Rb2 {[%clk 0:00:19.7]} 39. Kg1 {[%clk 0:00:48]} 39... Ree2 {[%clk 0:00:17.4]}
40. Rf1 {[%clk 0:00:48.4]} 40... Rec2 {[%clk 0:00:14.3]} 41. Rc4 {[%clk
0:00:46]} 41... f5 {[%clk 0:00:13.3]} 42. Ra4 {[%clk 0:00:44.3]} 42... Rxc3
{[%clk 0:00:12.1]} 43. Rxa7 {[%clk 0:00:44.3]} 43... Ra2 {[%clk 0:00:11.6]} 44.
a4 {[%clk 0:00:43.7]} 44... Rca3 {[%clk 0:00:11.7]} 45. Rd1 {[%clk 0:00:38.7]}
45... Rxa4 {[%clk 0:00:11.9]} 46. Rd6+ {[%clk 0:00:38.5]} 46... Kg5 {[%clk
0:00:12]} 47. Rg7+ {[%clk 0:00:38.4]} 47... Kh5 {[%clk 0:00:11.7]} 48. Rf6
{[%clk 0:00:24.7]} 48... f4 {[%clk 0:00:07.9]} 49. gxf4 {[%clk 0:00:20.7]} 49...
Ra1+ {[%clk 0:00:06.4]} 50. Kh2 {[%clk 0:00:20.7]} 50... g3+ {[%clk 0:00:06.9]}
51. fxg3 {[%clk 0:00:20.2]} 51... Rh1+ {[%clk 0:00:07]} 52. Kxh1 {[%clk
0:00:18.9]} 52... Ra1+ {[%clk 0:00:07.8]} 53. Kh2 {[%clk 0:00:19.3]} 53... Rh1+
{[%clk 0:00:08.7]} 54. Kxh1 {[%clk 0:00:19.5]} 1/2-1/2

[Event "*** Titled Tuesday Blitz"]
[Site "Chess.com"]
[Date "2021.02.16"]
[Round "10"]
[White "rozabaku"]
[Black "AniJak"]
[Result "0-1"]
[WhiteElo "2221"]
[BlackElo "2322"]
[TimeControl "180+1"]
[EndTime "11:59:44 PST"]
[Termination "AniJak won by checkmate"]

1. d4 {[%clk 0:03:00.9]} 1... d5 {[%clk 0:02:58.9]} 2. c4 {[%clk 0:03:01.8]}
2... c6 {[%clk 0:02:59.2]} 3. Nc3 {[%clk 0:03:01.3]} 3... Nf6 {[%clk 0:02:59.3]}
4. Bg5 {[%clk 0:03:00.8]} 4... h6 {[%clk 0:02:56.8]} 5. Bxf6 {[%clk 0:03:00.1]}
5... exf6 {[%clk 0:02:57.1]} 6. e3 {[%clk 0:02:59.7]} 6... Be6 {[%clk
0:02:50.1]} 7. c5 {[%clk 0:02:51.7]} 7... Be7 {[%clk 0:02:47.1]} 8. a3 {[%clk
0:02:51.4]} 8... O-O {[%clk 0:02:46.4]} 9. Bd3 {[%clk 0:02:51.5]} 9... Nd7
{[%clk 0:02:41]} 10. Nge2 {[%clk 0:02:47.2]} 10... Bg4 {[%clk 0:02:37.4]} 11.
O-O {[%clk 0:02:41.3]} 11... Bxe2 {[%clk 0:02:34.4]} 12. Qxe2 {[%clk 0:02:38.3]}
12... Re8 {[%clk 0:02:34.8]} 13. Qg4 {[%clk 0:02:33.6]} 13... Nf8 {[%clk
0:02:32.4]} 14. f4 {[%clk 0:02:26.2]} 14... Qd7 {[%clk 0:02:28.6]} 15. Bf5
{[%clk 0:02:25.1]} 15... Qc7 {[%clk 0:02:25.4]} 16. Rf3 {[%clk 0:02:21.3]} 16...
g6 {[%clk 0:02:19.8]} 17. Rg3 {[%clk 0:02:10.9]} 17... Kh7 {[%clk 0:01:57.9]}
18. h4 {[%clk 0:01:58.7]} 18... Kg7 {[%clk 0:01:32.6]} 19. Bd3 {[%clk
0:01:06.8]} 19... b6 {[%clk 0:01:24.2]} 20. b4 {[%clk 0:01:00.9]} 20... bxc5
{[%clk 0:01:24]} 21. bxc5 {[%clk 0:00:56.6]} 21... Rab8 {[%clk 0:01:24.2]} 22.
h5 {[%clk 0:00:50.9]} 22... g5 {[%clk 0:01:23.7]} 23. Rf1 {[%clk 0:00:46.2]}
23... Rb3 {[%clk 0:01:13]} 24. fxg5 {[%clk 0:00:39.1]} 24... fxg5 {[%clk
0:01:10.3]} 25. Rgf3 {[%clk 0:00:33.5]} 25... f6 {[%clk 0:01:06.3]} 26. Bg6
{[%clk 0:00:20]} 26... Nxg6 {[%clk 0:00:39.6]} 27. hxg6 {[%clk 0:00:20.9]} 27...
Rxc3 {[%clk 0:00:39.5]} 28. Rh3 {[%clk 0:00:20.8]} 28... Bd8 {[%clk 0:00:28]}
29. Qh5 {[%clk 0:00:20.3]} 29... Rh8 {[%clk 0:00:27.6]} 30. Rhf3 {[%clk
0:00:17.8]} 30... Qd7 {[%clk 0:00:22]} 31. Qh2 {[%clk 0:00:15.3]} 31... Kxg6
{[%clk 0:00:17.2]} 32. Qg3 {[%clk 0:00:14]} 32... Kg7 {[%clk 0:00:17.1]} 33. Qf2
{[%clk 0:00:14.2]} 33... Qe6 {[%clk 0:00:16.5]} 34. Qg3 {[%clk 0:00:13.1]} 34...
Re8 {[%clk 0:00:15.9]} 35. Qb8 {[%clk 0:00:12.8]} 35... Rxe3 {[%clk 0:00:15.3]}
36. Qxa7+ {[%clk 0:00:12.3]} 36... Re7 {[%clk 0:00:15.5]} 37. Qa4 {[%clk
0:00:12]} 37... Rxf3 {[%clk 0:00:15.7]} 38. Rxf3 {[%clk 0:00:12.9]} 38... Qe1+
{[%clk 0:00:15.6]} 39. Kh2 {[%clk 0:00:13.6]} 39... Qh4+ {[%clk 0:00:15.9]} 40.
Kg1 {[%clk 0:00:13]} 40... Re1+ {[%clk 0:00:15.5]} 41. Rf1 {[%clk 0:00:13.4]}
41... Rxf1+ {[%clk 0:00:14.5]} 42. Kxf1 {[%clk 0:00:14.3]} 42... Qf4+ {[%clk
0:00:14.7]} 43. Kg1 {[%clk 0:00:14.4]} 43... Bc7 {[%clk 0:00:15]} 44. Qb4 {[%clk
0:00:13.6]} 44... h5 {[%clk 0:00:14.9]} 45. Qc3 {[%clk 0:00:12.3]} 45... h4
{[%clk 0:00:13.9]} 46. a4 {[%clk 0:00:12.7]} 46... g4 {[%clk 0:00:13.7]} 47. a5
{[%clk 0:00:12.6]} 47... h3 {[%clk 0:00:14.1]} 48. gxh3 {[%clk 0:00:12.2]} 48...
gxh3 {[%clk 0:00:14.3]} 49. a6 {[%clk 0:00:12.7]} 49... h2+ {[%clk 0:00:14.2]}
50. Kg2 {[%clk 0:00:10.9]} 50... Qe4+ {[%clk 0:00:13.6]} 51. Kf2 {[%clk
0:00:09.2]} 51... h1=Q {[%clk 0:00:12.9]} 52. a7 {[%clk 0:00:08.5]} 52... Qhg2#
{[%clk 0:00:12.4]} 0-1